fUSD/lending_fUSD_20251129
["ID","MTS","AMOUNT","RATE_DAILY","PERIOD"]
[395059913,1764385863654,-500.0,0.00024657,2]
[395059914,1764385863664,-702.65,0.00024657,2]
[395059915,1764385863674,-500.0,0.00024657,2]
[395059916,1764385863683,-500.0,0.00024657,2]
[395059917,1764385863693,-500.0,0.00024657,2]
[395059918,1764385863702,-500.0,0.00024657,2]
[395059919,1764385863712,-500.0,0.00024657,2]
[395059920,1764385863722,-526.92,0.00024657,2]
[395059921,1764385863732,-500.0,0.00024657,2]
[395059922,1764385863743,-500.0,0.00024657,2]
[395059923,1764385863753,-500.0,0.00024657,2]
[395059924,1764385863763,-504.86709897,0.00024657,2]
[395059925,1764385863773,-643.67,0.00024657,2]
[395059926,1764385863783,-664.04,0.00024657,2]
[395059927,1764385863793,-500.0,0.00024657,2]
[395059928,1764385863803,-500.0,0.00024657,2]
[395059929,1764385863813,-837.84,0.00024657,2]
[395059930,1764385863823,-500.0,0.00024657,2]
[395059931,1764385863833,-500.0,0.00024657,2]
[395059932,1764385863843,-500.0,0.00024657,2]
[395059933,1764385863854,-500.0,0.00024657,2]
[395059934,1764385863864,-1083.81,0.00024657,2]
[395059935,1764385863873,-500.0,0.00024657,2]
[395059936,1764385863883,-552.16,0.00024657,2]
[395059937,1764385863892,-500.0,0.00024657,2]
[395059938,1764385863902,-500.0,0.00024657,2]
[395059939,1764385863912,-823.5,0.00024657,2]
[395059940,1764385863921,-500.0,0.00024657,2]
[395059941,1764385863931,-500.0,0.00024657,2]
[395059942,1764385863940,-500.0,0.00024657,2]
[395059943,1764385863950,-500.0,0.00024657,2]
[395059944,1764385863959,-500.0,0.00024657,2]
[395059945,1764385863969,-500.0,0.00024657,2]
[395059946,1764385863979,-500.0,0.00024657,2]
[395059947,1764385863988,-500.0,0.00024657,2]
[395059948,1764385863998,-632.86,0.00024657,2]
[395059949,1764385864013,-539.11,0.00024657,2]
[395059950,1764385864023,-500.0,0.00024657,2]
[395059951,1764385864032,-500.0,0.00024657,2]
[395059952,1764385864042,-606.39,0.00024657,2]
[395059953,1764385864052,-500.0,0.00024657,2]
[395059954,1764385864062,-500.0,0.00024657,2]
[395059955,1764385864072,-500.0,0.00024657,2]
[395059956,1764385864081,-500.0,0.00024657,2]
[395059957,1764385864091,-500.0,0.00024657,2]
[395059958,1764385864101,-500.0,0.00024657,2]
[395059959,1764385864111,-589.12,0.00024657,2]
[395059960,1764385864121,-500.0,0.00024657,2]
[395059961,1764385864131,-936.66,0.00024657,2]
[395059962,1764385864141,-500.0,0.00024657,2]
[395059963,1764385864151,-1220.71,0.00024657,2]
[395059964,1764385864160,-598.06,0.00024657,2]
[395059965,1764385864170,-500.0,0.00024657,2]
[395059966,1764385864180,-500.0,0.00024657,2]
[395059967,1764385864190,-500.0,0.00024657,2]
[395059968,1764385864199,-500.0,0.00024657,2]
[395059969,1764385864210,-500.0,0.00024657,2]
[395059970,1764385864220,-500.0,0.00024657,2]
[395059971,1764385864230,-500.0,0.00024657,2]
[395059972,1764385864244,-625.5,0.00024657,2]
[395059973,1764385864254,-500.0,0.00024657,2]
[395059974,1764385864265,-966.34,0.00024657,2]
[395059975,1764385864275,-500.0,0.00024657,2]
[395059976,1764385864285,-1726.7,0.00024657,2]
[395059977,1764385864295,-640.35,0.00024657,2]
[395059978,1764385864304,-1658.21,0.00024657,2]
[395059979,1764385864316,-500.0,0.00024657,2]
[395059980,1764385864326,-500.0,0.00024657,2]
[395059981,1764385864337,-500.0,0.00024657,2]
[395059982,1764385864347,-500.0,0.00024657,2]
[395059983,1764385864357,-597.72,0.00024657,2]
[395059984,1764385864367,-500.0,0.00024657,2]
[395059985,1764385864377,-500.0,0.00024657,2]
[395059986,1764385864386,-500.0,0.00024657,2]
[395059987,1764385864396,-705.79,0.00024657,2]
[395059988,1764385864406,-395.71482919,0.00024657,2]
[395059989,1764385864415,-545.51,0.00024657,2]
[395059990,1764385864425,-500.0,0.00024657,2]
[395059991,1764385864435,-500.0,0.00024657,2]
[395059992,1764385864445,-500.0,0.00024657,2]
[395059993,1764385864456,-500.0,0.00024657,2]
[395059994,1764385864467,-500.0,0.00024657,2]
[395059995,1764385864478,-500.0,0.00024657,2]
[395059996,1764385864487,-520.85353083,0.00024657,2]
[395059997,1764385864498,-500.0,0.00024657,2]
[395059998,1764385864508,-1146.44,0.00024657,2]
[395059999,1764385864518,-500.0,0.00024657,2]
[395060000,1764385864527,-500.0,0.00024657,2]
[395060001,1764385864538,-500.0,0.00024657,2]
[395060002,1764385864547,-500.0,0.00024657,2]
[395060003,1764385864561,-502.49970172,0.00024657,2]
[395060004,1764385864571,-500.0,0.00024657,2]
[395060005,1764385864581,-500.0,0.00024657,2]
[395060006,1764385864591,-500.0,0.00024657,2]
[395060007,1764385864602,-500.0,0.00024657,2]
[395060008,1764385864612,-500.0,0.00024657,2]
[395060009,1764385864623,-500.0,0.00024657,2]
[395060010,1764385864636,-500.0,0.00024657,2]
[395060011,1764385864645,-500.0,0.00024657,2]
[395060012,1764385864655,-827.28,0.00024657,2]
[395060013,1764385864665,-916.66,0.00024657,2]
[395060014,1764385864676,-500.0,0.00024657,2]
[395060015,1764385864685,-500.0,0.00024657,2]
[395060016,1764385864695,-596.82,0.00024657,2]
[395060017,1764385864706,-500.0,0.00024657,2]
[395060018,1764385864716,-500.0,0.00024657,2]
[395060019,1764385864726,-500.0,0.00024657,2]
[395060020,1764385864736,-500.0,0.00024657,2]
[395060021,1764385864745,-771.33,0.00024657,2]
[395060022,1764385864755,-655.96,0.00024657,2]
[395060023,1764385864765,-584.56,0.00024657,2]
[395060024,1764385864775,-500.0,0.00024657,2]
[395060025,1764385864786,-500.0,0.00024657,2]
[395060026,1764385864795,-500.0,0.00024657,2]
[395060027,1764385864805,-500.0,0.00024657,2]
[395060028,1764385864815,-708.97,0.00024657,2]
[395060029,1764385864825,-500.0,0.00024657,2]
[395060030,1764385864837,-500.0,0.00024657,2]
[395060031,1764385864847,-500.0,0.00024657,2]
[395060032,1764385864857,-602.63,0.00024657,2]
[395060033,1764385864867,-565.01,0.00024657,2]
[395060034,1764385864877,-500.0,0.00024657,2]
[395060035,1764385864887,-500.0,0.00024657,2]
[395060036,1764385864897,-500.0,0.00024657,2]
[395060037,1764385864908,-500.0,0.00024657,2]
[395060038,1764385864918,-572.31,0.00024657,2]
[395060039,1764385864928,-508.94,0.00024657,2]
[395060040,1764385864938,-656.15,0.00024657,2]
[395060041,1764385864947,-500.0,0.00024657,2]
[395060042,1764385864957,-444.11209941,0.00024657,2]
[395060043,1764385864967,-743.87,0.00024657,2]
[395060044,1764385864977,-500.0,0.00024657,2]
[395060045,1764385864986,-500.0,0.00024657,2]
[395060046,1764385864995,-500.0,0.00024657,2]
[395060047,1764385865005,-500.0,0.00024657,2]
[395060048,1764385865016,-1091.06,0.00024657,2]
[395060049,1764385865025,-556.92,0.00024657,2]
[395060050,1764385865035,-500.0,0.00024657,2]
[395060051,1764385865044,-500.0,0.00024657,2]
[395060052,1764385865054,-642.47,0.00024657,2]
[395060053,1764385865064,-500.0,0.00024657,2]
[395060054,1764385865074,-500.0,0.00024657,2]
[395060055,1764385865085,-500.0,0.00024657,2]
[395060056,1764385865095,-500.0,0.00024657,2]
[395060057,1764385865108,-500.0,0.00024657,2]
[395060058,1764385865121,-500.0,0.00024657,2]
[395060059,1764385865131,-812.76,0.00024657,2]
[395060060,1764385865141,-1035.77,0.00024657,2]
[395060061,1764385865150,-500.0,0.00024657,2]
[395060062,1764385865160,-500.0,0.00024657,2]
[395060063,1764385865170,-721.62,0.00024657,2]
[395060064,1764385865179,-500.0,0.00024657,2]
[395060065,1764385865189,-829.7,0.00024657,2]
[395060066,1764385865198,-1031.33,0.00024657,2]
[395060067,1764385865208,-500.0,0.00024657,2]
[395060068,1764385865218,-503.43767518,0.00024657,2]
[395060069,1764385865228,-755.05,0.00024657,2]
[395060070,1764385865241,-644.1,0.00024657,2]
[395060071,1764385865250,-500.0,0.00024657,2]
[395060072,1764385865262,-500.0,0.00024657,2]
[395060073,1764385865271,-525.29,0.00024657,2]
[395060074,1764385865281,-727.91,0.00024657,2]
[395060075,1764385865291,-509.10583522,0.00024657,2]
[395060076,1764385865301,-500.0,0.00024657,2]
[395060077,1764385865311,-500.0,0.00024657,2]
[395060078,1764385865321,-500.0,0.00024657,2]
[395060079,1764385865331,-500.0,0.00024657,2]
[395060080,1764385865340,-484.53922578,0.00024657,2]
[395060081,1764385865350,-566.99,0.00024657,2]
[395060082,1764385865361,-500.0,0.00024657,2]
[395060083,1764385865370,-500.0,0.00024657,2]
[395060084,1764385865381,-615.5,0.00024657,2]
[395060085,1764385865390,-200.36537823,0.00024657,2]
[395060086,1764385865400,-164.67296209,0.00024657,2]
[395060087,1764385865410,-500.0,0.00024657,2]
[395060088,1764385865422,-500.0,0.00024657,2]
[395060089,1764385865433,-500.0,0.00024657,2]
[395060090,1764385865446,-500.0,0.00024657,2]
[395060091,1764385865456,-500.0,0.00024657,2]
[395060092,1764385865465,-500.0,0.00024657,2]
[395060093,1764385865475,-500.0,0.00024657,2]
[395060094,1764385865485,-500.0,0.00024657,2]
[395060095,1764385865497,-500.0,0.00024657,2]
[395060096,1764385865507,-500.0,0.00024657,2]
[395060097,1764385865517,-727.5,0.00024657,2]
[395060098,1764385865526,-507.98,0.00024657,2]
[395060099,1764385865537,-500.0,0.00024657,2]
[395060100,1764385865547,-728.15,0.00024657,2]
[395060101,1764385865558,-500.0,0.00024657,2]
[395060102,1764385865568,-500.0,0.00024657,2]
[395060103,1764385865578,-1104.36,0.00024657,2]
[395060104,1764385865589,-500.0,0.00024657,2]
[395060105,1764385865599,-500.0,0.00024657,2]
[395060106,1764385865608,-795.39,0.00024657,2]
[395060107,1764385865619,-500.0,0.00024657,2]
[395060108,1764385865629,-500.0,0.00024657,2]
[395060109,1764385865639,-779.72,0.00024657,2]
[395060110,1764385865648,-500.0,0.00024657,2]
[395060111,1764385865658,-500.0,0.00024657,2]
[395060112,1764385865668,-500.0,0.00024657,2]
[395060113,1764385865678,-500.0,0.00024657,2]
[395060114,1764385865688,-500.0,0.00024657,2]
[395060115,1764385865698,-500.0,0.00024657,2]
[395060116,1764385865707,-500.0,0.00024657,2]
[395060117,1764385865717,-25102.89,0.00024657,2]
[395060118,1764385865727,-500.0,0.00024657,2]
[395060119,1764385865737,-1624.45,0.00024657,2]
[395060120,1764385865747,-500.0,0.00024657,2]
[395060121,1764385865757,-500.0,0.00024657,2]
[395060122,1764385865767,-596.56,0.00024657,2]
[395060123,1764385865777,-500.0,0.00024657,2]
[395060124,1764385865787,-529.12,0.00024657,2]
[395060125,1764385865798,-500.0,0.00024657,2]
[395060126,1764385865808,-500.0,0.00024657,2]
[395060127,1764385865818,-500.0,0.00024657,2]
[395060128,1764385865828,-528.87,0.00024657,2]
[395060129,1764385865840,-500.0,0.00024657,2]
[395060130,1764385865851,-712.6,0.00024657,2]
[395060131,1764385865860,-500.0,0.00024657,2]
[395060132,1764385865871,-530.09490097,0.00024657,2]
[395060133,1764385865881,-500.0,0.00024657,2]
[395060134,1764385865892,-500.0,0.00024657,2]
[395060135,1764385865902,-726.14,0.00024657,2]
[395060136,1764385865911,-500.0,0.00024657,2]
[395060137,1764385865921,-611.65,0.00024657,2]
[395060138,1764385865932,-1116.9,0.00024657,2]
[395060139,1764385865941,-500.0,0.00024657,2]
[395060140,1764385865952,-500.0,0.00024657,2]
[395060141,1764385865962,-500.0,0.00024657,2]
[395060142,1764385865972,-500.0,0.00024657,2]
[395060143,1764385865981,-1037.58,0.00024657,2]
[395060144,1764385865991,-500.0,0.00024657,2]
[395060145,1764385866002,-553.64,0.00024657,2]
[395060146,1764385866013,-528.67,0.00024657,2]
[395060147,1764385866024,-500.0,0.00024657,2]
[395060148,1764385866034,-6231.64,0.00024657,2]
[395060149,1764385866043,-500.0,0.00024657,2]
[395060150,1764385866053,-500.0,0.00024657,2]
[395060151,1764385866062,-500.0,0.00024657,2]
[395060152,1764385866072,-500.0,0.00024657,2]
[395060153,1764385866082,-500.0,0.00024657,2]
[395060154,1764385866091,-500.0,0.00024657,2]
[395060155,1764385866101,-1032.51,0.00024657,2]
[395060156,1764385866110,-500.0,0.00024657,2]
[395060157,1764385866119,-500.0,0.00024657,2]
[395060158,1764385866128,-908.52,0.00024657,2]
[395060159,1764385866138,-683.55,0.00024657,2]
[395060160,1764385866148,-2583.2,0.00024657,2]
[395060161,1764385866157,-513.79911134,0.00024657,2]
[395060162,1764385866166,-500.0,0.00024657,2]
[395060163,1764385866175,-500.0,0.00024657,2]
[395060164,1764385866184,-500.0,0.00024657,2]
[395060165,1764385866194,-500.0,0.00024657,2]
[395060166,1764385866204,-541.22,0.00024657,2]
[395060167,1764385866213,-284.73741663,0.00024657,2]
[395060168,1764385866223,-501.48,0.00024657,2]
[395060169,1764385866233,-947.91,0.00024657,2]
[395060170,1764385866244,-500.0,0.00024657,2]
[395060171,1764385866253,-500.0,0.00024657,2]
[395060172,1764385866262,-1991.36,0.00024657,2]
[395060173,1764385866271,-500.0,0.00024657,2]
[395060174,1764385866282,-500.0,0.00024657,2]
[395060175,1764385866292,-402.3713344,0.00024657,2]
[395060176,1764385866301,-527.59,0.00024657,2]
[395060177,1764385866313,-500.0,0.00024657,2]
[395060178,1764385866322,-500.0,0.00024657,2]
[395060179,1764385866331,-500.0,0.00024657,2]
[395060180,1764385866341,-500.0,0.00024657,2]
[395060181,1764385866350,-585.56,0.00024657,2]
[395060182,1764385866359,-500.0,0.00024657,2]
[395060183,1764385866368,-500.0,0.00024657,2]
[395060184,1764385866377,-567.09,0.00024657,2]
[395060185,1764385866386,-500.0,0.00024657,2]
[395060186,1764385866395,-1288.43,0.00024657,2]
[395060187,1764385866405,-500.0,0.00024657,2]
[395060188,1764385866414,-962.3,0.00024657,2]
[395060189,1764385866423,-610.72031042,0.00024657,2]
[395060190,1764385866432,-500.0,0.00024657,2]
[395060191,1764385866441,-1036.98,0.00024657,2]
[395060192,1764385866450,-720.74,0.00024657,2]
[395060193,1764385866459,-500.0,0.00024657,2]
[395060194,1764385866467,-500.0,0.00024657,2]
[395060195,1764385866476,-500.0,0.00024657,2]
[395060196,1764385866485,-733.16,0.00024657,2]
[395060197,1764385866495,-500.0,0.00024657,2]
[395060198,1764385866503,-767.2,0.00024657,2]
[395060199,1764385866513,-500.0,0.00024657,2]
[395060200,1764385866522,-500.0,0.00024657,2]
[395060201,1764385866531,-500.0,0.00024657,2]
[395060202,1764385866540,-500.0,0.00024657,2]
[395060203,1764385866549,-845.52,0.00024657,2]
[395060204,1764385866558,-500.0,0.00024657,2]
[395060205,1764385866567,-500.0,0.00024657,2]
[395060206,1764385866576,-500.0,0.00024657,2]
[395060207,1764385866586,-500.0,0.00024657,2]
[395060208,1764385866595,-500.0,0.00024657,2]
[395060209,1764385866604,-500.0,0.00024657,2]
[395060210,1764385866889,-503.90281069,0.00024657,2]
[395060211,1764385866900,-500.0,0.00024657,2]
[395060212,1764385866909,-500.0,0.00024657,2]
[395060213,1764385866918,-500.0,0.00024657,2]
[395060214,1764385866928,-500.0,0.00024657,2]
[395060215,1764385866937,-500.0,0.00024657,2]
[395060216,1764385866946,-500.0,0.00024657,2]
[395060217,1764385866955,-531.13,0.00024657,2]
[395060218,1764385866965,-500.0,0.00024657,2]
[395060219,1764385866974,-500.0,0.00024657,2]
[395060220,1764385866984,-500.0,0.00024657,2]
[395060221,1764385866994,-500.0,0.00024657,2]
[395060222,1764385867004,-500.0,0.00024657,2]
[395060223,1764385867013,-500.0,0.00024657,2]
[395060224,1764385867022,-500.0,0.00024657,2]
[395060225,1764385867031,-455.20817261,0.00024657,2]
[395060226,1764385867041,-500.0,0.00024657,2]
[395060227,1764385867050,-500.0,0.00024657,2]
[395060228,1764385867059,-500.0,0.00024657,2]
[395060229,1764385867068,-500.0,0.00024657,2]
[395060230,1764385867078,-500.0,0.00024657,2]
[395060231,1764385867087,-500.0,0.00024657,2]
[395060232,1764385867097,-500.0,0.00024657,2]
[395060233,1764385867106,-500.0,0.00024657,2]
[395060234,1764385867115,-500.0,0.00024657,2]
[395060235,1764385867125,-500.0,0.00024657,2]
[395060236,1764385867134,-500.0,0.00024657,2]
[395060237,1764385867143,-500.0,0.00024657,2]
[395060238,1764385867152,-500.0,0.00024657,2]
[395060239,1764385867162,-500.0,0.00024657,2]
[395060240,1764385867171,-500.0,0.00024657,2]
[395060241,1764385867181,-1588.8,0.00024657,2]
[395060242,1764385867190,-1158.82,0.00024657,2]
[395060243,1764385867201,-844.27,0.00024657,2]
[395060244,1764385867211,-867.3,0.00024657,2]
[395060245,1764385867220,-500.0,0.00024657,2]
[395060246,1764385867229,-503.76,0.00024657,2]
[395060247,1764385867243,-603.62,0.00024657,2]
[395060248,1764385867252,-500.0,0.00024657,2]
[395060249,1764385867262,-960.43,0.00024657,2]
[395060250,1764385867272,-500.0,0.00024657,2]
[395060251,1764385867281,-500.0,0.00024657,2]
[395060252,1764385867291,-500.0,0.00024657,2]
[395060253,1764385867300,-500.0,0.00024657,2]
[395060254,1764385867310,-500.0,0.00024657,2]
[395060255,1764385867319,-500.0,0.00024657,2]
[395060256,1764385867328,-1065.16,0.00024657,2]
[395060257,1764385867338,-723.65,0.00024657,2]
[395060258,1764385867349,-741.48,0.00024657,2]
[395060259,1764385867358,-500.0,0.00024657,2]
[395060260,1764385867368,-500.0,0.00024657,2]
[395060261,1764385867378,-500.0,0.00024657,2]
[395060262,1764385867387,-500.0,0.00024657,2]
[395060263,1764385867397,-500.0,0.00024657,2]
[395060264,1764385867406,-576.51,0.00024657,2]
[395060265,1764385867415,-500.0,0.00024657,2]
[395060266,1764385867425,-1000.0,0.00024657,2]
[395060267,1764385867434,-794.29,0.00024657,2]
[395060268,1764385867450,-500.0,0.00024657,2]
[395060269,1764385867460,-516.93,0.00024657,2]
[395060270,1764385867469,-500.0,0.00024657,2]
[395060271,1764385867478,-500.0,0.00024657,2]
[395060272,1764385867489,-500.0,0.00024657,2]
[395060273,1764385867498,-500.0,0.00024657,2]
[395060274,1764385867508,-500.0,0.00024657,2]
[395060275,1764385867517,-530.13,0.00024657,2]
[395060276,1764385867527,-552.06,0.00024657,2]
[395060277,1764385867536,-4589.15,0.00024657,2]
[395060278,1764385867545,-500.0,0.00024657,2]
[395060279,1764385867555,-500.0,0.00024657,2]
[395060280,1764385867564,-500.0,0.00024657,2]
[395060281,1764385867573,-500.0,0.00024657,2]
[395060282,1764385867583,-500.0,0.00024657,2]
[395060283,1764385867592,-500.0,0.00024657,2]
[395060284,1764385867602,-500.0,0.00024657,2]
[395060285,1764385867611,-831.78,0.00024657,2]
[395060286,1764385867621,-500.0,0.00024657,2]
[395060287,1764385867630,-748.02,0.00024657,2]
[395060288,1764385867639,-500.0,0.00024657,2]
[395060289,1764385867649,-500.0,0.00024657,2]
[395060290,1764385867659,-500.0,0.00024657,2]
[395060291,1764385867668,-500.0,0.00024657,2]
[395060292,1764385867678,-500.0,0.00024657,2]
[395060293,1764385867687,-200.50708494,0.00024657,2]
[395060294,1764385867696,-8627.07,0.00024657,2]
[395060295,1764385867705,-500.0,0.00024657,2]
[395060296,1764385867714,-500.0,0.00024657,2]
[395060297,1764385867723,-500.0,0.00024657,2]
[395060298,1764385867733,-500.0,0.00024657,2]
[395060299,1764385867742,-500.0,0.00024657,2]
[395060300,1764385867751,-500.0,0.00024657,2]
[395060301,1764385867760,-500.0,0.00024657,2]
[395060302,1764385867770,-604.75631399,0.00024657,2]
[395060303,1764385867779,-500.0,0.00024657,2]
[395060304,1764385867789,-500.0,0.00024657,2]
[395060305,1764385867799,-500.0,0.00024657,2]
[395060306,1764385867808,-83487.51,0.00024657,2]
[395060307,1764385867818,-500.0,0.00024657,2]
[395060308,1764385867827,-500.0,0.00024657,2]
[395060309,1764385867837,-156.72600631,0.00024657,2]
[395060310,1764385867847,-500.0,0.00024657,2]
[395060311,1764385867856,-500.0,0.00024657,2]
[395060312,1764385867866,-500.0,0.00024657,2]
[395060313,1764385867875,-500.0,0.00024657,2]
[395060314,1764385867885,-500.0,0.00024657,2]
[395060315,1764385867895,-601.48,0.00024657,2]
[395060316,1764385867904,-567.01,0.00024657,2]
[395060317,1764385867914,-500.0,0.00024657,2]
[395060318,1764385867923,-500.0,0.00024657,2]
[395060319,1764385867931,-500.0,0.00024657,2]
[395060320,1764385867941,-500.0,0.00024657,2]
[395060321,1764385867950,-500.0,0.00024657,2]
[395060322,1764385867959,-521.69,0.00024657,2]
[395060323,1764385867968,-711.21,0.00024657,2]
[395060324,1764385867977,-500.0,0.00024657,2]
[395060325,1764385867987,-500.0,0.00024657,2]
[395060326,1764385867997,-500.0,0.00024657,2]
[395060327,1764385868006,-500.0,0.00024657,2]
[395060328,1764385868015,-500.0,0.00024657,2]
[395060329,1764385868025,-500.0,0.00024657,2]
[395060330,1764385868034,-500.0,0.00024657,2]
[395060331,1764385868043,-754.42,0.00024657,2]
[395060332,1764385868053,-541.08,0.00024657,2]
[395060333,1764385868062,-458.80034562,0.00024657,2]
[395060334,1764385868073,-623.09,0.00024657,2]
[395060335,1764385868088,-500.0,0.00024657,2]
[395060336,1764385868097,-500.0,0.00024657,2]
[395060337,1764385868107,-738.63,0.00024657,2]
[395060338,1764385868116,-1801.52,0.00024657,2]
[395060339,1764385868126,-500.0,0.00024657,2]
[395060340,1764385868135,-575.84,0.00024657,2]
[395060341,1764385868144,-500.0,0.00024657,2]
[395060342,1764385868154,-500.0,0.00024657,2]
[395060343,1764385868165,-500.0,0.00024657,2]
[395060344,1764385868180,-500.0,0.00024657,2]
[395060345,1764385868190,-744.18,0.00024657,2]
[395060346,1764385868199,-500.0,0.00024657,2]
[395060347,1764385868209,-2001.22,0.00024657,2]
[395060348,1764385868219,-1052.59,0.00024657,2]
[395060349,1764385868228,-506.29532812,0.00024657,2]
[395060350,1764385868242,-601.84,0.00024657,2]
[395060351,1764385868251,-500.0,0.00024657,2]
[395060352,1764385868261,-500.0,0.00024657,2]
[395060353,1764385868270,-500.0,0.00024657,2]
[395060354,1764385868281,-500.0,0.00024657,2]
[395060355,1764385868290,-500.0,0.00024657,2]
[395060356,1764385868300,-154.3049985,0.00024657,2]
[395060357,1764385868311,-500.0,0.00024657,2]
[395060358,1764385868320,-654.4,0.00024657,2]
[395060359,1764385868329,-744.3,0.00024657,2]
[395060360,1764385868340,-500.0,0.00024657,2]
[395060361,1764385868350,-989.5,0.00024657,2]
[395060362,1764385868360,-500.0,0.00024657,2]
[395060363,1764385868369,-500.0,0.00024657,2]
[395060364,1764385868379,-852.37,0.00024657,2]
[395060365,1764385868389,-500.0,0.00024657,2]
[395060366,1764385868398,-500.0,0.00024657,2]
[395060367,1764385868408,-500.0,0.00024657,2]
[395060368,1764385868417,-500.0,0.00024657,2]
[395060369,1764385868429,-530.36146143,0.00024657,2]
[395060370,1764385868439,-821.93,0.00024657,2]
[395060371,1764385868449,-623.23,0.00024657,2]
[395060372,1764385868459,-500.0,0.00024657,2]
[395060373,1764385868468,-500.0,0.00024657,2]
[395060374,1764385868477,-500.0,0.00024657,2]
[395060375,1764385868487,-500.0,0.00024657,2]
[395060376,1764385868496,-500.0,0.00024657,2]
[395060377,1764385868505,-821.18,0.00024657,2]
[395060378,1764385868515,-599.06082152,0.00024657,2]
[395060379,1764385868524,-500.0,0.00024657,2]
[395060380,1764385868534,-500.0,0.00024657,2]
[395060381,1764385868543,-500.0,0.00024657,2]
[395060382,1764385868552,-500.0,0.00024657,2]
[395060383,1764385868562,-500.0,0.00024657,2]
[395060384,1764385868571,-500.0,0.00024657,2]
[395060385,1764385868580,-500.0,0.00024657,2]
[395060386,1764385868590,-200.75797991,0.00024657,2]
[395060387,1764385868599,-750.81,0.00024657,2]
[395060388,1764385868608,-500.0,0.00024657,2]
[395060389,1764385868618,-500.0,0.00024657,2]
[395060390,1764385868630,-563.08,0.00024657,2]
[395060391,1764385868640,-578.56,0.00024657,2]
[395060392,1764385868649,-500.0,0.00024657,2]
[395060393,1764385868659,-500.0,0.00024657,2]
[395060394,1764385868668,-1037.4,0.00024657,2]
[395060395,1764385868678,-500.0,0.00024657,2]
[395060396,1764385868687,-500.0,0.00024657,2]
[395060397,1764385868697,-500.0,0.00024657,2]
[395060398,1764385868706,-500.0,0.00024657,2]
[395060399,1764385868715,-406.10416229,0.00024657,2]
[395060400,1764385868725,-500.0,0.00024657,2]
[395060401,1764385868734,-524.64564159,0.00024657,2]
[395060402,1764385868744,-976.76,0.00024657,2]
[395060403,1764385868754,-500.0,0.00024657,2]
[395060404,1764385868763,-500.0,0.00024657,2]
[395060405,1764385868772,-500.0,0.00024657,2]
[395060406,1764385868782,-500.0,0.00024657,2]
[395060407,1764385868791,-500.0,0.00024657,2]
[395060408,1764385868802,-500.0,0.00024657,2]
[395060409,1764385868811,-529.52,0.00024657,2]
[395060410,1764385868820,-500.0,0.00024657,2]
[395060411,1764385868830,-500.0,0.00024657,2]
[395060412,1764385868840,-500.0,0.00024657,2]